fUST/lending_fUST_20240301
["ID","MTS","AMOUNT","RATE_DAILY","PERIOD"]
[315851580,1709223038494,-1830.83424475,0.00017883,2]
[315851582,1709223038507,-426.16643017,0.00017883,2]
[315851584,1709223038517,-334.95140365,0.00017884,2]
[315851586,1709223038529,-281.94724767,0.00017884,2]
[315851588,1709223038538,-185.02116839,0.00017885,2]
[315851941,1709223044519,-280.21092748,0.00017882,2]
[315851942,1709223044529,-29.44617793,0.00017885,2]
[315851943,1709223044538,-193.9160116,0.00017886,2]
[315851944,1709223044548,-1079.67786944,0.00018068,2]
[315851945,1709223044557,-883.48769579,0.00018673,2]
[315851946,1709223044566,-129.29994631,0.00018972,2]
[315851947,1709223044578,-355.76084655,0.00018972,2]
[315851948,1709223044587,-705.47150073,0.00018975,2]
[315851949,1709223044596,-619.38647173,0.00018991,2]
[315851950,1709223044655,-86.085029,0.00018991,2]
[315851951,1709223044665,-705.47150073,0.00018992,2]
[315851952,1709223044674,-485.06079286,0.00018992,2]
[315851953,1709223044683,-485.06079286,0.00018994,2]
[315851954,1709223044693,-534.56629894,0.00019,2]
[315851955,1709223044718,-2087.00259279,0.00019,2]
[315851956,1709223044729,-832.68375712,0.00019,2]
[315851993,1709223049683,-1271.07826719,0.00019,2]
[315851994,1709223049692,-325.02090709,0.0002,2]
[315851995,1709223049718,-50.8337088,0.0002,2]
[315852015,1709224091446,10000.0,0.00017,2]
[315852047,1709224235102,-155.01395126,0.00018537,2]
[315852048,1709224235112,-6912.93495998,0.00018538,2]
[315852049,1709224235121,-616.89865132,0.00018538,2]
[315852050,1709224235131,-2111.69061905,0.00018538,2]
[315852051,1709224235141,-1605.71911662,0.00018539,2]
[315852052,1709224235151,-1863.33093334,0.00018539,2]
[315852053,1709224235160,-1079.67786944,0.0001854,2]
[315852054,1709224235170,-214.46734632,0.00018541,2]
[315852056,1709224235180,-1592.05606337,0.00018541,2]
[315852058,1709224235189,-22938.0839556,0.0001857,2]
[315852059,1709224235199,-671.95977779,0.000189,2]
[315852061,1709224235208,-1238.24029911,0.00019999,2]
[315852064,1709224235218,-312.79895381,0.0002,2]
[315852066,1709224235228,-155.05426899,0.0002,2]
[315852069,1709224235237,-151.61197063,0.0002,2]
[315852072,1709224235246,-223.25937606,0.0002009,2]
[315852074,1709224235256,-3417.44,0.00020179,3]
[315852077,1709224235265,-2847.87,0.00020179,3]
[315852079,1709224235275,-2373.22,0.00020179,3]
[315852081,1709224235284,-223.25937603,0.00020179,2]
[315852083,1709224235294,-63.17266858,0.0002018,3]
[315852085,1709224235306,-463.02733142,0.0002018,3]
[315852087,1709224235318,-526.25,0.0002018,3]
[315852089,1709224235327,-379.7,0.0002018,3]
[315852091,1709224235337,-2888.9865773,0.00020189,2]
[315852133,1709224240683,-4276.38168783,0.00020189,2]
[315852135,1709224240695,-40834.63173487,0.00020189,2]
[315852137,1709224240705,-50000.0,0.0002019,5]
[315852138,1709224240714,-68866.18826749,0.0002019,5]
[315852139,1709224240723,-3432.09141163,0.0002019,5]
[315852140,1709224240732,-153.8728806,0.000202,2]
[315852142,1709224240742,-153.0,0.000202,2]
[315852143,1709224240751,-153.0,0.000202,2]
[315852145,1709224240760,-153.0,0.000202,2]
[315852147,1709224240770,-153.0,0.000202,2]
[315852149,1709224240779,-153.0,0.000202,2]
[315852151,1709224240788,-200.6643816,0.000202,2]
[315852152,1709224240798,-153.0,0.000202,2]
[315852153,1709224240807,-153.0,0.000202,2]
[315852154,1709224240818,-200.6643816,0.000202,2]
[315852155,1709224240828,-223.25937603,0.00020269,2]
[315852156,1709224240838,-24138.00406151,0.00020299,3]
[315852158,1709224240847,-151.0,0.00020299,2]
[315852160,1709224240856,-151.0,0.00020299,2]
[315852162,1709224240866,-151.0,0.00020299,2]
[315852164,1709224240875,-151.0,0.00020299,2]
[315852165,1709224240885,-151.0,0.00020299,2]
[315852167,1709224240894,-617.79402751,0.00020343,2]
[315852169,1709224240903,-500.0,0.00020343,2]
[315852171,1709224240913,-200.25301686,0.00020343,2]
[315852173,1709224240923,-500.0,0.00020343,2]
[315852176,1709224240933,-500.0,0.00020343,2]
[315852177,1709224240942,-500.0,0.00020343,2]
[315852179,1709224240951,-364.11654393,0.00020343,2]
[315852181,1709224240960,-500.0,0.00020343,2]
[315852183,1709224240969,-500.0,0.00020343,2]
[315852186,1709224240979,-500.0,0.00020343,2]
[315852188,1709224240988,-500.0,0.00020343,2]
[315852189,1709224240997,-65113.32887747,0.00020344,2]
[315852192,1709224241007,-151.0,0.00020344,2]
[315852193,1709224241016,-151.0,0.00020344,2]
[315852195,1709224241026,-151.0,0.00020344,2]
[315852197,1709224241035,-151.0,0.00020344,2]
[315852199,1709224241044,-223.25937603,0.00020358,2]
[315852201,1709224241054,-223.25937603,0.00020447,2]
[315852204,1709224241063,-874.44518536,0.00020447,2]
[315852206,1709224241074,-14872.6524235,0.00020447,2]
[315852207,1709224241083,-153.0,0.00020466,2]
[315852209,1709224241092,-153.0,0.00020466,2]
[315852211,1709224241101,-153.0,0.00020466,2]
[315852213,1709224241110,-1000.0,0.00020482,2]
[315852215,1709224241119,-874.44518528,0.00020497,2]
[315852217,1709224241129,-5001.83972274,0.000205,5]
[315852219,1709224241138,-151.0,0.000205,2]
[315852221,1709224241147,-192.8286475,0.000205,2]
[315852223,1709224241156,-151.0,0.000205,2]
[315852225,1709224241165,-151.0,0.000205,2]
[315852227,1709224241175,-471.25095612,0.00020547,2]
[315852229,1709224241184,-500.0,0.00020547,2]
[315852231,1709224241193,-500.0,0.00020547,2]
[315852233,1709224241202,-500.0,0.00020547,2]
[315852235,1709224241211,-500.0,0.00020547,2]
[315852237,1709224241220,-500.0,0.00020547,2]
[315852239,1709224241230,-500.0,0.00020547,2]
[315852241,1709224241239,-500.0,0.00020547,2]
[315852243,1709224241249,-500.0,0.00020547,2]
[315852245,1709224241258,-500.0,0.00020547,2]
[315852247,1709224241267,-500.0,0.00020547,2]
[315852249,1709224241276,-500.0,0.00020547,2]
[315852251,1709224241286,-500.0,0.00020547,2]
[315852253,1709224241295,-500.0,0.00020547,2]
[315852254,1709224241306,-500.0,0.00020547,2]
[315852255,1709224241318,-500.0,0.00020547,2]
[315852256,1709224241327,-501.1803164,0.00020547,2]
[315852257,1709224241336,-500.0,0.00020547,2]
[315852258,1709224241346,-188.72470612,0.00020547,2]
[315852259,1709224241355,-450.13004601,0.00020547,2]
[315852261,1709224241365,-500.0,0.00020547,2]
[315852262,1709224241374,-415.44975403,0.00020547,2]
[315852263,1709224241383,-568.85457968,0.00020547,2]
[315852264,1709224241393,-500.0,0.00020547,2]
[315852265,1709224241404,-500.0,0.00020547,2]
[315852267,1709224241413,-500.0,0.00020547,2]
[315852269,1709224241423,-500.0,0.00020547,2]
[315852271,1709224241432,-500.0,0.00020547,2]
[315852273,1709224241442,-500.0,0.00020547,2]
[315852275,1709224241452,-275.64,0.00020547,2]
[315852277,1709224241462,-500.0,0.00020547,2]
[315852279,1709224241471,-500.0,0.00020547,2]
[315852281,1709224241480,-500.0,0.00020547,2]
[315852283,1709224241490,-500.0,0.00020547,2]
[315852285,1709224241499,-500.0,0.00020547,2]
[315852287,1709224241509,-500.0,0.00020547,2]
[315852289,1709224241519,-500.0,0.00020547,2]
[315852291,1709224241528,-500.0,0.00020547,2]
[315852293,1709224241538,-500.0,0.00020547,2]
[315852295,1709224241547,-500.0,0.00020547,2]
[315852297,1709224241556,-500.0,0.00020547,2]
[315852299,1709224241571,-500.0,0.00020547,2]
[315852301,1709224241580,-500.0,0.00020547,2]
[315852303,1709224241593,-317.96,0.00020547,2]
[315852305,1709224241603,-500.0,0.00020547,2]
[315852307,1709224241613,-500.0,0.00020547,2]
[315852309,1709224241622,-500.0,0.00020547,2]
[315852311,1709224241632,-323.07,0.00020547,2]
[315852313,1709224241642,-500.0,0.00020547,2]
[315852315,1709224241651,-500.0,0.00020547,2]
[315852317,1709224241661,-500.0,0.00020547,2]
[315852319,1709224241670,-500.0,0.00020547,2]
[315852321,1709224241679,-500.0,0.00020547,2]
[315852323,1709224241688,-500.0,0.00020547,2]
[315852325,1709224241698,-500.0,0.00020547,2]
[315852327,1709224241708,-600.0,0.00020547,2]
[315852329,1709224241717,-500.0,0.00020547,2]
[315852331,1709224241726,-500.0,0.00020547,2]
[315852333,1709224241735,-500.0,0.00020547,2]
[315852335,1709224241745,-500.0,0.00020547,2]
[315852337,1709224241754,-500.0,0.00020547,2]
[315852339,1709224241763,-500.0,0.00020547,2]
[315852341,1709224241773,-500.0,0.00020547,2]
[315852343,1709224241782,-500.0,0.00020547,2]
[315852345,1709224241791,-500.0,0.00020547,2]
[315852347,1709224241800,-490.09376918,0.00020547,2]
[315852349,1709224241810,-500.0,0.00020547,2]
[315852351,1709224241822,-500.0,0.00020547,2]
[315852353,1709224241833,-500.0,0.00020547,2]
[315852354,1709224241843,-500.0,0.00020547,2]
[315852356,1709224241852,-500.0,0.00020547,2]
[315852358,1709224241861,-500.0,0.00020547,2]
[315852360,1709224241871,-500.0,0.00020547,2]
[315852362,1709224241880,-463.51086057,0.00020547,2]
[315852364,1709224241890,-151.0,0.00020547,2]
[315852367,1709224241899,-151.0,0.00020547,2]
[315852369,1709224241909,-151.0,0.00020547,2]
[315852371,1709224241919,-151.0,0.00020547,2]
[315852373,1709224241928,-151.0,0.00020547,2]
[315852375,1709224241937,-151.0,0.00020547,2]
[315852377,1709224241946,-151.0,0.00020547,2]
[315852379,1709224241955,-500.0,0.00020547,2]
[315852381,1709224241963,-500.0,0.00020547,2]
[315852383,1709224241972,-500.0,0.00020547,2]
[315852385,1709224241982,-500.0,0.00020547,2]
[315852387,1709224241991,-218.17939073,0.00020547,2]
[315852389,1709224242000,-500.0,0.00020547,2]
[315852391,1709224242008,-500.0,0.00020547,2]
[315852393,1709224242017,-500.0,0.00020547,2]
[315852395,1709224242026,-500.0,0.00020547,2]
[315852397,1709224242035,-222.87,0.00020547,2]
[315852398,1709224242045,-500.0,0.00020547,2]
[315852401,1709224242054,-500.0,0.00020547,2]
[315852402,1709224242063,-500.0,0.00020547,2]
[315852405,1709224242074,-500.0,0.00020547,2]
[315852407,1709224242083,-500.0,0.00020547,2]
[315852409,1709224242092,-423.44,0.00020547,2]
[315852410,1709224242101,-500.0,0.00020547,2]
[315852411,1709224242110,-500.0,0.00020547,2]
[315852412,1709224242120,-500.0,0.00020547,2]
[315852413,1709224242129,-500.0,0.00020547,2]
[315852414,1709224242139,-220.04820398,0.00020547,2]
[315852415,1709224242149,-500.64514974,0.00020547,2]
[315852416,1709224242158,-500.0,0.00020547,2]
[315852417,1709224242254,-500.0,0.00020547,2]
[315852418,1709224242265,-257.26883127,0.00020547,2]
[315852419,1709224242275,-500.0,0.00020547,2]
[315852420,1709224242286,-500.0,0.00020547,2]
[315852421,1709224242295,-197.61,0.00020547,2]
[315852422,1709224242304,-151.0,0.00020547,2]
[315852424,1709224242313,-151.0,0.00020547,2]
[315852426,1709224242325,-346.43365351,0.00020547,2]
[315852428,1709224242334,-151.0,0.00020547,2]
[315852430,1709224242343,-151.0,0.00020547,2]
[315852431,1709224242352,-151.0,0.00020547,2]
[315852433,1709224242361,-154.564018,0.00020547,2]
[315852435,1709224242370,-500.0,0.00020547,2]
[315852438,1709224242380,-502.00456458,0.00020547,2]
[315852440,1709224242389,-500.0,0.00020547,2]
[315852441,1709224242398,-500.0,0.00020547,2]
[315852443,1709224242408,-500.0,0.00020547,2]
[315852445,1709224242417,-500.0,0.00020547,2]
[315852447,1709224242427,-500.0,0.00020547,2]
[315852449,1709224242436,-500.0,0.00020547,2]
[315852451,1709224242445,-500.0,0.00020547,2]
[315852453,1709224242455,-500.0,0.00020547,2]
[315852455,1709224242464,-500.0,0.00020547,2]
[315852457,1709224242473,-500.0,0.00020547,2]
[315852459,1709224242483,-500.0,0.00020547,2]
[315852461,1709224242492,-500.0,0.00020547,2]
[315852463,1709224242502,-500.0,0.00020547,2]
[315852465,1709224242511,-500.0,0.00020547,2]
[315852467,1709224242520,-365.09,0.00020547,2]
[315852469,1709224242529,-500.0,0.00020547,2]
[315852471,1709224242538,-500.0,0.00020547,2]
[315852473,1709224242547,-500.0,0.00020547,2]
[315852475,1709224242556,-171.8,0.00020547,2]
[315852477,1709224242570,-394.21638932,0.00020547,2]
[315852479,1709224242580,-500.0,0.00020547,2]
[315852481,1709224242590,-500.0,0.00020547,2]
[315852483,1709224242599,-500.0,0.00020547,2]
[315852485,1709224242610,-500.0,0.00020547,2]
[315852488,1709224242619,-500.0,0.00020547,2]
[315852490,1709224242629,-500.0,0.00020547,2]
[315852491,1709224242638,-500.0,0.00020547,2]
[315852493,1709224242648,-500.0,0.00020547,2]
[315852495,1709224242657,-504.29934445,0.00020547,2]
[315852498,1709224242668,-388.19999895,0.00020547,2]
[315852500,1709224242678,-420.23584405,0.00020547,2]
[315852502,1709224242687,-1337.4,0.00020547,2]
[315852503,1709224242696,-1337.4,0.00020547,2]
[315852505,1709224242706,-1337.4,0.00020547,2]
[315852508,1709224242716,-1337.4,0.00020547,2]
[315852510,1709224242726,-1337.4,0.00020547,2]
[315852512,1709224242735,-500.0,0.00020547,2]
[315852513,1709224242745,-1337.4,0.00020547,2]
[315852515,1709224242754,-500.0,0.00020547,2]
[315852517,1709224242765,-1337.4,0.00020547,2]
[315852520,1709224242774,-1337.4,0.00020547,2]
[315852521,1709224242784,-1337.4,0.00020547,2]
[315852523,1709224242793,-500.0,0.00020547,2]
[315852525,1709224242803,-500.0,0.00020547,2]
[315852528,1709224242812,-500.0,0.00020547,2]
[315852529,1709224242825,-500.0,0.00020547,2]
[315852531,1709224242835,-500.0,0.00020547,2]
[315852533,1709224242844,-500.0,0.00020547,2]
[315852535,1709224242853,-500.0,0.00020547,2]
[315852537,1709224242862,-500.0,0.00020547,2]
[315852539,1709224242872,-500.0,0.00020547,2]
[315852541,1709224242881,-500.0,0.00020547,2]
[315852543,1709224242889,-500.0,0.00020547,2]
[315852545,1709224242898,-500.0,0.00020547,2]
[315852547,1709224242907,-500.0,0.00020547,2]
[315852549,1709224242917,-500.0,0.00020547,2]
[315852551,1709224242926,-500.0,0.00020547,2]
[315852553,1709224242935,-500.0,0.00020547,2]
[315852555,1709224242944,-500.0,0.00020547,2]
[315852557,1709224242954,-248.52,0.00020547,2]
[315852559,1709224242963,-439.5851716,0.00020547,2]
[315852563,1709224242990,-60.4148284,0.00020547,2]
[315852565,1709224242999,-500.0,0.00020547,2]
[315852567,1709224243008,-30.24236235,0.00020547,2]
[315852569,1709224243020,-469.75763765,0.00020547,2]
[315852571,1709224243029,-360.15005205,0.00020547,2]
[315852576,1709224243067,-139.84994795,0.00020547,2]
[315852578,1709224243078,-335.25,0.00020547,2]
[315852581,1709224243089,-500.0,0.00020547,2]
[315852584,1709224243099,-296.84590806,0.00020547,2]
[315852586,1709224243113,-205.90246367,0.00020547,2]
[315852587,1709224243122,-689.39,0.00020547,2]
[315852588,1709224243132,-689.39,0.00020547,2]
[315852589,1709224243143,-689.39,0.00020547,2]
[315852590,1709224243152,-689.39,0.00020547,2]
[315852592,1709224243162,-689.39,0.00020547,2]
[315852594,1709224243171,-689.39,0.00020547,2]
[315852595,1709224243180,-689.39,0.00020547,2]
[315852596,1709224243189,-689.39,0.00020547,2]
[315852597,1709224243198,-689.39,0.00020547,2]
[315852598,1709224243208,-500.0,0.00020547,2]
[315852599,1709224243217,-500.0,0.00020547,2]
[315852600,1709224243227,-500.0,0.00020547,2]
[315852601,1709224243237,-500.0,0.00020547,2]
[315852602,1709224243247,-500.0,0.00020547,2]
[315852604,1709224243257,-500.0,0.00020547,2]
[315852606,1709224243266,-500.0,0.00020547,2]
[315852607,1709224243276,-500.0,0.00020547,2]
[315852609,1709224243285,-500.0,0.00020547,2]
[315852612,1709224243295,-500.0,0.00020547,2]
[315852615,1709224243305,-500.0,0.00020547,2]
[315852618,1709224243314,-500.0,0.00020547,2]
[315852620,1709224243325,-162.653008,0.00020547,2]
[315852623,1709224243335,-500.0,0.00020547,2]
[315852626,1709224243344,-500.0,0.00020547,2]
[315852629,1709224243354,-500.0,0.00020547,2]
[315852630,1709224243362,-500.0,0.00020547,2]
[315852634,1709224243372,-500.0,0.00020547,2]
[315852637,1709224243381,-500.0,0.00020547,2]
[315852639,1709224243391,-176.78341468,0.00020547,2]
[315852641,1709224243402,-500.0,0.00020547,2]
[315852642,1709224243411,-500.0,0.00020547,2]
[315852644,1709224243422,-500.0,0.00020547,2]
[315852649,1709224243433,-500.0,0.00020547,2]
[315852654,1709224243442,-500.0,0.00020547,2]
[315852657,1709224243451,-500.0,0.00020547,2]
[315852661,1709224243460,-500.0,0.00020547,2]
[315852665,1709224243469,-500.0,0.00020547,2]
[315852668,1709224243479,-500.0,0.00020547,2]
[315852672,1709224243488,-500.0,0.00020547,2]
[315852675,1709224243498,-500.0,0.00020547,2]
[315852679,1709224243508,-500.0,0.00020547,2]
[315852683,1709224243519,-500.0,0.00020547,2]
[315852687,1709224243529,-500.0,0.00020547,2]
[315852690,1709224243539,-500.0,0.00020547,2]
[315852692,1709224243549,-500.0,0.00020547,2]
[315852696,1709224243560,-500.0,0.00020547,2]
[315852699,1709224243575,-500.0,0.00020547,2]
[315852702,1709224243585,-253.19,0.00020547,2]
[315852706,1709224243598,-501.86402129,0.00020547,2]
[315852710,1709224243608,-500.90236481,0.00020547,2]
[315852714,1709224243618,-500.0,0.00020547,2]
[315852718,1709224243628,-5114.81,0.00020547,2]
[315852721,1709224243637,-5114.81,0.00020547,2]
[315852725,1709224243646,-5114.81,0.00020547,2]
[315852729,1709224243656,-5114.81,0.00020547,2]
[315852733,1709224243666,-5114.81,0.00020547,2]
[315852738,1709224243677,-5114.81,0.00020547,2]
[315852741,1709224243688,-5114.81,0.00020547,2]
[315852745,1709224243698,-2611.61864994,0.00020547,2]
[315852928,1709224250974,-200.5064595,0.000202,2]
[315852929,1709224250984,-153.0,0.00020466,2]
[315852930,1709224250994,-30.72159135,0.00020547,2]
[315852931,1709224251007,-2472.46975871,0.00020547,2]
[315852932,1709224251016,-5114.81,0.00020547,2]
[315852933,1709224251026,-1790.75541434,0.00020547,2]
[315853024,1709225432065,-321.40419734,0.00017905,2]
[315853025,1709225432074,-214.46734632,0.00017906,2]
[315853026,1709225432084,-1079.67786944,0.00017906,2]
[315853027,1709225432095,-1338.09926385,0.00017906,2]
[315853028,1709225432104,-1863.33093334,0.00017907,2]
[315853029,1709225432114,-3976.91656435,0.00017917,2]
[315853030,1709225432123,-1823.29462811,0.00017918,2]
[315853031,1709225432132,-1384.4182,0.00017921,2]
[315853032,1709225432141,-5444.70688033,0.00018189,2]
[315853033,1709225432151,-1260.3186205,0.0001819,2]
[315853034,1709225432161,-154.87609912,0.00018586,2]
[315853035,1709225432170,-682.78733222,0.000189,2]
[315853036,1709225432180,-586.46822023,0.00018972,2]
[315853037,1709225432189,-586.46822023,0.00018973,2]
[315853038,1709225432198,-586.46822023,0.0001898,2]
[315853039,1709225432208,-153.0,0.0002,2]
[315853040,1709225432217,-306.0,0.0002,2]
[315853041,1709225432226,-153.0,0.0002,2]
[315853042,1709225432238,-306.0,0.0002,2]
[315853043,1709225432247,-153.0,0.00020052,2]
[315853044,1709225432257,-153.0,0.00020052,2]
[315853045,1709225432266,-153.0,0.00020052,2]
[315853046,1709225432275,-40000.0,0.00020079,2]
[315853047,1709225432284,-3258.31,0.0002008,3]
[315853048,1709225432293,-2715.26,0.0002008,3]
[315853049,1709225432303,-20836.73049594,0.0002009,2]
[315853050,1709225432312,-153.0,0.000201,2]
[315853051,1709225432321,-153.0,0.00020192,2]
[315853052,1709225432331,-952.40338424,0.00020193,5]
[315853053,1709225432341,-5000.0,0.00020193,5]
[315853054,1709225432350,-244.51160824,0.00020193,5]
[315853055,1709225432359,-11255.84338039,0.00020193,5]
[315853056,1709225432368,-153.0,0.00020252,2]
[315853057,1709225432377,-700.0,0.00020299,2]
[315853059,1709225432386,-5431.05091384,0.00020299,2]
[315853061,1709225432396,-219.53524723,0.00020446,2]
[315853063,1709225432405,-219.53524719,0.00020446,2]
[315853065,1709225432415,-219.53524719,0.00020447,2]
[315853067,1709225432424,-219.53524719,0.00020447,2]
[315853069,1709225432433,-219.53524719,0.00020447,2]
[315853071,1709225432443,-11153.09866603,0.000205,3]
[315853073,1709225432452,-500.0,0.00020546,2]
[315853075,1709225432461,-500.0,0.00020546,2]
[315853076,1709225432470,-500.0,0.00020546,2]
[315853077,1709225432482,-500.0,0.00020546,2]
[315853078,1709225432496,-500.4167856,0.00020546,2]
[315853079,1709225432505,-500.0,0.00020546,2]
[315853080,1709225432514,-500.0,0.00020546,2]
[315853081,1709225432523,-500.0,0.00020546,2]
[315853082,1709225432533,-500.0,0.00020546,2]
[315853083,1709225432542,-500.0,0.00020546,2]
[315853084,1709225432550,-500.0,0.00020546,2]
[315853085,1709225432559,-500.0,0.00020546,2]
[315853086,1709225432568,-234.13153479,0.00020546,2]
[315853087,1709225432577,-500.0,0.00020546,2]
[315853088,1709225432586,-500.0,0.00020546,2]
[315853089,1709225432595,-500.0,0.00020546,2]
[315853090,1709225432604,-500.0,0.00020546,2]
[315853091,1709225432613,-500.0,0.00020546,2]
[315853092,1709225432622,-250.0,0.00020546,2]
[315853093,1709225432631,-500.0,0.00020546,2]
[315853094,1709225432641,-316.73942498,0.00020546,2]
[315853095,1709225432650,-500.0,0.00020546,2]
[315853096,1709225432659,-500.0,0.00020546,2]
[315853097,1709225432672,-500.0,0.00020546,2]
[315853098,1709225432682,-273.81905496,0.00020546,2]
[315853099,1709225432691,-458.74612707,0.00020546,2]
[315853100,1709225432701,-155.0356582,0.00020547,2]
[315853101,1709225432710,-316.07662917,0.00020547,2]
[315853102,1709225432719,-364.42132833,0.00020547,2]
[315853103,1709225432731,-500.0,0.00020547,2]
[315853104,1709225432741,-500.0,0.00020547,2]
[315853105,1709225432750,-500.0,0.00020547,2]
[315853106,1709225432759,-396.77837823,0.00020547,2]
[315853107,1709225432768,-500.0,0.00020547,2]
[315853108,1709225432778,-500.0,0.00020547,2]
[315853109,1709225432788,-500.0,0.00020547,2]
[315853110,1709225432797,-500.0,0.00020547,2]
[315853111,1709225432806,-378.09595608,0.00020547,2]
[315853112,1709225432816,-501.70061197,0.00020547,2]
[315853113,1709225432825,-636.90447411,0.00020547,2]
[315853114,1709225432835,-500.0,0.00020547,2]
[315853115,1709225432844,-279.30791777,0.00020547,2]
[315853116,1709225432854,-500.0,0.00020547,2]
[315853117,1709225432863,-500.0,0.00020547,2]
[315853118,1709225432873,-525.83,0.00020547,2]
[315853119,1709225432882,-588.21769024,0.00020547,2]
[315853120,1709225432892,-500.0,0.00020547,2]
[315853121,1709225432901,-500.0,0.00020547,2]
[315853122,1709225432910,-601.56155229,0.00020547,2]
[315853123,1709225432919,-500.0,0.00020547,2]
[315853124,1709225432931,-224.93,0.00020547,2]
[315853125,1709225432941,-282.6196593,0.00020547,2]
[315853126,1709225432953,-501.13519098,0.00020547,2]
[315853127,1709225432963,-500.0,0.00020547,2]
[315853128,1709225432975,-500.0,0.00020547,2]
[315853129,1709225432990,-500.0,0.00020547,2]
[315853130,1709225433000,-370.51,0.00020547,2]
[315853131,1709225433009,-500.0,0.00020547,2]
[315853132,1709225433020,-500.0,0.00020547,2]
[315853133,1709225433030,-500.0,0.00020547,2]
[315853134,1709225433040,-432.64,0.00020547,2]
[315853135,1709225433052,-500.0,0.00020547,2]
[315853136,1709225433062,-500.0,0.00020547,2]
[315853137,1709225433071,-500.0,0.00020547,2]
[315853138,1709225433081,-500.0,0.00020547,2]
[315853139,1709225433090,-500.0,0.00020547,2]
[315853140,1709225433099,-500.0,0.00020547,2]
[315853141,1709225433109,-500.0,0.00020547,2]
[315853142,1709225433118,-500.0,0.00020547,2]
[315853143,1709225433128,-399.65353369,0.00020547,2]
[315853144,1709225433138,-500.0,0.00020547,2]
[315853145,1709225433148,-500.0,0.00020547,2]
[315853146,1709225433157,-500.0,0.00020547,2]
[315853147,1709225433167,-500.0,0.00020547,2]
[315853148,1709225433176,-500.0,0.00020547,2]
[315853149,1709225433186,-500.0,0.00020547,2]
[315853150,1709225433195,-500.0,0.00020547,2]
[315853151,1709225433205,-246.96258692,0.00020547,2]
[315853152,1709225433214,-500.0,0.00020547,2]
[315853153,1709225433223,-500.0,0.00020547,2]
[315853154,1709225433237,-501.16857812,0.00020547,2]
[315853155,1709225433246,-500.0,0.00020547,2]
[315853156,1709225433255,-500.0,0.00020547,2]
[315853157,1709225433264,-612.90799831,0.00020547,2]
[315853158,1709225433274,-500.0,0.00020547,2]
[315853159,1709225433283,-500.0,0.00020547,2]
[315853160,1709225433292,-628.54884446,0.00020547,2]
[315853161,1709225433301,-1060.25,0.00020547,2]
[315853162,1709225433310,-1060.25,0.00020547,2]
[315853163,1709225433319,-1060.25,0.00020547,2]
[315853164,1709225433329,-1060.25,0.00020547,2]
[315853165,1709225433338,-1060.25,0.00020547,2]
[315853166,1709225433347,-1060.25,0.00020547,2]
[315853167,1709225433356,-1060.25,0.00020547,2]
[315853168,1709225433366,-1060.25,0.00020547,2]
[315853169,1709225433375,-1060.25,0.00020547,2]
[315853170,1709225433385,-1060.25,0.00020547,2]
[315853171,1709225433394,-500.0,0.00020547,2]
[315853172,1709225433404,-1060.25,0.00020547,2]
[315853173,1709225433414,-500.0,0.00020547,2]
[315853174,1709225433424,-1060.25,0.00020547,2]
[315853175,1709225433433,-500.0,0.00020547,2]
[315853176,1709225433442,-1060.25,0.00020547,2]